bitfinex-derivatives/quotes_SOLF0:USTF0_20251115
["timestamp","ask_amount","ask_price","bid_price","bid_amount"]
[1763242415866,5.08006466,140.05,140.03,3.28]
[1763242416167,5.08006466,140.06,140.03,3.28]
[1763242416468,0.05263008,140.05,140.03,3.28]
[1763242424571,5.13269474,140.05,140.03,3.28]
[1763242424760,0.05263008,140.05,140.03,3.28]
[1763242424960,5.13269474,140.05,140.03,3.28]
[1763242425163,0.05263008,140.05,140.03,3.28]
[1763242425364,5.13269474,140.05,140.03,3.28]
[1763242425568,0.05263008,140.05,140.03,3.28]
[1763242425769,5.13269474,140.05,140.03,3.28]
[1763242426566,5.13269474,140.05,140.02,3.32788031]
[1763242427272,5.08006466,140.04,140.02,3.32788031]
[1763242435066,5.08006466,140.04,140.02,0.04788031]
[1763242435266,10.20113456,140.03,140.02,0.04788031]
[1763242436765,5.08006466,140.03,140.02,0.04788031]
[1763242436964,10.20113456,140.03,140.02,0.04788031]
[1763242437164,5.08006466,140.03,140.02,0.04788031]
[1763242437365,10.20113456,140.03,140.02,0.04788031]
[1763242438273,5.08006466,140.03,140.02,0.04788031]
[1763242438474,10.20113456,140.03,140.02,0.04788031]
[1763242438778,5.08006466,140.03,140.02,0.04788031]
[1763242438966,10.20113456,140.03,140.02,0.04788031]
[1763242439163,5.08006466,140.03,140.02,0.04788031]
[1763242439369,10.20113456,140.03,140.02,0.04788031]
[1763242439569,5.08006466,140.03,140.02,0.04788031]
[1763242439770,10.20113456,140.03,140.02,0.04788031]
[1763242439969,5.08006466,140.03,140.02,0.04788031]
[1763242440169,10.20113456,140.03,140.02,0.04788031]
[1763242440370,5.08006466,140.03,140.02,0.04788031]
[1763242440570,10.20113456,140.03,140.02,0.04788031]
[1763242440874,5.08006466,140.03,140.02,0.04788031]
[1763242441071,13.07246535,140.03,140.02,0.04788031]
[1763242441265,13.07246535,140.03,139.96,3.28]
[1763242441266,89.19246535,140.03,139.96,3.28]
[1763242441472,2.87133079,140.01,139.96,3.28]
[1763242441776,10.20113456,140.0,139.96,3.28]
[1763242441975,5.08006466,139.99,139.96,3.28]
[1763242442172,5.08006466,139.98,139.96,3.33474178]
[1763242442570,5.13270034,139.99,139.96,3.33474178]
[1763242443370,0.05263568,139.99,139.96,3.33474178]
[1763242443580,5.13270034,139.99,139.96,3.33474178]
[1763242443781,0.05263568,139.99,139.96,3.33474178]
[1763242444077,5.13270034,139.99,139.96,3.33474178]
[1763242444280,0.05263568,139.99,139.96,3.33474178]
[1763242448075,2.87133079,139.98,139.96,0.05474178]
[1763242448276,7.97433671,139.98,139.96,0.05474178]
[1763242449274,2.87133079,139.98,139.96,0.05474178]
[1763242450676,2.92396647,139.99,139.96,3.15474178]
[1763242450871,13.14804229,139.99,139.96,3.15474178]
[1763242452580,13.14804229,139.99,139.96,0.05474178]
[1763242452985,2.87133079,139.97,139.96,0.05474178]
[1763242458192,13.14804229,139.99,139.96,0.05474178]
[1763242459890,13.14804229,139.99,139.96,3.22474178]
[1763242460091,56.54,139.98,139.96,0.05474178]
[1763242460395,5.10300592,139.97,139.96,0.05474178]
[1763242462396,56.54,139.98,139.96,0.05474178]
[1763242462894,5.07251012,139.97,139.96,0.05474178]
[1763242463299,56.54,139.98,139.96,0.05474178]
[1763242469802,5.07294403,139.97,139.96,0.05474178]
[1763242469996,56.54,139.98,139.96,0.05474178]
[1763242470193,0.05263568,139.99,139.96,3.22474178]
[1763242479310,5.12881251,139.99,139.96,3.22474178]
[1763242479506,0.05263568,139.99,139.96,3.22474178]
[1763242479705,5.12881251,139.99,139.96,3.22474178]
[1763242480005,0.05263568,139.99,139.96,3.22474178]
[1763242480211,5.12881251,139.99,139.96,3.22474178]
[1763242480710,0.05263568,139.99,139.96,3.22474178]
[1763242480900,5.12881251,139.99,139.96,3.22474178]
[1763242481096,0.05263568,139.99,139.96,3.22474178]
[1763242481295,5.07617683,139.98,139.96,3.22474178]
[1763242484017,8.67473668,140.03,139.96,3.22474178]
[1763242484018,5.09775353,140.01,139.96,3.22474178]
[1763242484217,5.09775353,140.03,139.96,3.17]
[1763242484409,5.09775353,140.02,139.98,3.32]
[1763242484609,5.09775353,140.03,139.98,3.32]
[1763242484918,5.09775353,140.05,139.98,3.32]
[1763242485110,0.05476166,140.03,140.01,3.32]
[1763242488227,5.09775353,140.06,140.01,3.32]
[1763242488429,2.87133079,140.08,140.01,3.32]
[1763242488617,7.96908432,140.08,140.01,3.32]
[1763242489225,2.87133079,140.08,140.01,3.32]
[1763242489421,0.04532969,140.06,140.04,3.32]
[1763242489621,0.04532969,140.06,140.03,0.04577495]
[1763242489622,2.91666048,140.06,140.03,3.36577495]
[1763242490129,2.87133079,140.04,140.03,0.04577495]
[1763242490928,1.83851487,140.04,140.03,0.04577495]
[1763242494335,0.04532969,140.06,140.03,0.04577495]
[1763242494535,1.83851487,140.04,140.03,0.04577495]
[1763242495137,1.88384456,140.06,140.03,3.36577495]
[1763242495829,1.83851487,140.04,140.03,0.04577495]
[1763242496034,0.04532969,140.06,140.03,0.04577495]
[1763242496235,1.83851487,140.05,140.03,3.36577495]
[1763242499339,1.83851487,140.05,140.03,0.04577495]
[1763242500040,1.83851487,140.04,140.03,0.04577495]
[1763242500342,1.83851487,140.04,140.03,3.36577495]
[1763242502142,0.04532969,140.06,140.03,3.36577495]
[1763242502445,1.83851487,140.05,140.03,3.36577495]
[1763242503743,0.04532969,140.06,140.03,3.36577495]
[1763242503943,0.04532969,140.06,140.04,3.32]
[1763242505149,0.04532969,140.06,140.04,5.15851487]
[1763242505348,1.83851487,140.11,140.05,3.18]
[1763242506049,10.10167233,140.12,140.07,3.18]
[1763242506351,0.05170448,140.11,140.09,3.18]
[1763242509548,1.89021935,140.11,140.08,0.04636378]
[1763242510349,1.83851487,140.09,140.08,0.04636378]
[1763242510950,1.83851487,140.09,140.04,3.18]
[1763242511256,1.83851487,140.07,140.04,3.18]
[1763242512057,1.89220747,140.07,140.04,3.22690692]
[1763242515365,1.83851487,140.05,140.04,3.22690692]
[1763242521368,0.0536926,140.07,140.04,3.22690692]
[1763242521562,1.83851487,140.05,140.04,3.22690692]
[1763242522773,0.0536926,140.07,140.04,3.22690692]
[1763242522970,1.83851487,140.05,140.04,3.22690692]
[1763242526566,1.83851487,140.05,140.04,0.04690692]
[1763242526761,1.83851487,140.05,140.0,3.38]
[1763242526964,1.83851487,140.02,140.0,3.38]
[1763242527761,1.88774165,140.02,140.0,3.43189668]
[1763242538981,1.88774165,140.02,140.0,0.05189668]
[1763242543178,0.04922678,140.02,140.0,3.14189668]
[1763242543489,0.04922678,140.02,140.0,4.98041155]
[1763242543681,0.04922678,140.02,140.01,3.09]
[1763242546789,0.04922678,140.02,140.0,3.14189668]
[1763242557099,5.07805254,140.02,140.0,3.14189668]
[1763242557290,0.04922678,140.02,140.0,3.14189668]
[1763242563006,5.08078508,140.02,140.0,3.14189668]
[1763242563398,0.04922678,140.02,140.0,3.14189668]
[1763242563595,5.08078508,140.02,140.0,3.14189668]
[1763242563799,0.04922678,140.02,140.0,3.14189668]
[1763242564104,5.08078508,140.02,140.0,3.14189668]
[1763242564306,0.04922678,140.02,140.0,3.14189668]
[1763242564507,5.08078508,140.02,140.0,3.14189668]
[1763242564702,0.04922678,140.02,140.0,3.14189668]
[1763242564896,5.08078508,140.02,140.0,3.14189668]
[1763242565097,0.04922678,140.02,140.0,3.14189668]
[1763242565301,5.08078508,140.02,140.0,3.14189668]
[1763242565512,0.04922678,140.02,140.0,3.14189668]
[1763242565710,5.08078508,140.02,140.0,3.14189668]
[1763242565909,0.04922678,140.02,140.0,3.14189668]
[1763242566101,5.08078508,140.02,140.0,3.14189668]
[1763242566302,0.04922678,140.02,140.0,3.14189668]
[1763242566596,5.08078508,140.02,140.0,3.14189668]
[1763242566800,0.04922678,140.02,140.0,3.14189668]
[1763242566997,5.08078508,140.02,140.0,3.14189668]
[1763242567202,0.04922678,140.02,140.0,3.14189668]
[1763242567403,5.0315583,140.01,140.0,3.14189668]
[1763242571416,10.12146695,140.01,140.0,3.14189668]
[1763242572411,10.12146695,140.01,140.0,0.05189668]
[1763242573210,10.12146695,140.01,140.0,3.13189668]
[1763242575116,10.12146695,140.01,140.0,0.05189668]
[1763242575310,10.12146695,140.01,139.97,3.08]
[1763242575511,10.12146695,140.0,139.97,3.08]
[1763242575713,5.0315583,139.99,139.97,3.08]
[1763242575912,10.12146695,140.0,139.97,3.08]
[1763242576108,5.0315583,139.99,139.97,3.08]
[1763242576312,10.12146695,140.0,139.97,3.12879102]
[1763242576516,5.0315583,139.99,139.97,3.12879102]
[1763242576716,10.12146695,140.0,139.97,3.12879102]
[1763242576918,10.12146695,140.01,139.97,3.12879102]
[1763242577117,5.0315583,140.0,139.97,3.12879102]
[1763242578009,5.08990865,140.01,139.97,3.12879102]
[1763242578010,5.0315583,140.01,139.97,3.12879102]
[1763242578318,0.04922678,140.02,140.0,3.08]
[1763242585824,0.04922678,140.02,140.01,5.9518069]
[1763242587024,0.04922678,140.02,140.01,3.08]
[1763242588622,10.12146695,140.06,140.02,3.08]
[1763242588828,5.0315583,140.05,140.04,3.08]
[1763242589117,5.08990865,140.06,140.04,3.08]
[1763242589118,9.21731593,140.06,140.04,3.08]
[1763242589319,9.21731593,140.08,140.06,3.08]
[1763242589517,6.57846426,140.1,140.06,3.08]
[1763242589518,5.0315583,140.07,140.06,3.08]
[1763242589713,0.04674574,140.08,140.06,3.12591485]
[1763242589922,5.0315583,140.07,140.06,3.12591485]
[1763242590728,0.04674574,140.08,140.06,3.12591485]
[1763242600421,2.8718069,140.07,140.0,3.28]
[1763242601444,0.04698491,140.05,140.03,3.28]
[1763242603930,0.04698491,140.05,140.02,3.32702723]
[1763242612427,0.04698491,140.05,140.02,0.04702723]
[1763242612831,1.8852334,140.05,140.02,0.04702723]
[1763242614334,6.91365571,140.05,140.02,0.04702723]
[1763242614541,1.8852334,140.05,140.02,0.04702723]
[1763242614840,6.91365571,140.05,140.02,0.04702723]
[1763242615039,1.8852334,140.05,140.02,0.04702723]
[1763242615239,6.91365571,140.05,140.02,0.04702723]
[1763242615428,1.8852334,140.05,140.02,0.04702723]
[1763242615632,6.91365571,140.05,140.02,0.04702723]
[1763242615839,1.8852334,140.05,140.02,0.04702723]
[1763242616040,6.91365571,140.05,140.02,0.04702723]
[1763242616340,1.8852334,140.05,140.02,0.04702723]
[1763242616537,6.91365571,140.05,140.02,0.04702723]
[1763242616738,1.8852334,140.05,140.02,0.04702723]
[1763242616940,6.91365571,140.05,140.02,0.04702723]
[1763242617139,1.8852334,140.05,140.02,0.04702723]
[1763242617438,6.91365571,140.05,140.02,0.04702723]
[1763242617636,1.8852334,140.05,140.02,0.04702723]
[1763242617835,6.91365571,140.05,140.02,0.04702723]
[1763242618035,1.8852334,140.05,140.02,0.04702723]
[1763242618236,6.91365571,140.05,140.02,0.04702723]
[1763242618438,1.8852334,140.05,140.02,0.04702723]
[1763242618741,6.91365571,140.05,140.02,0.04702723]
[1763242618937,1.8852334,140.05,140.02,0.04702723]
[1763242619137,6.91365571,140.05,140.02,0.04702723]
[1763242619338,5.02842231,140.04,140.02,0.04702723]
[1763242622335,5.02842231,140.03,139.94,21.0]
[1763242622541,5.02842231,140.02,139.91,21.0]
[1763242622744,5.02842231,140.01,139.97,3.28]
[1763242622943,5.02842231,140.02,139.98,3.28]
[1763242623245,5.02842231,140.01,139.99,3.28]
[1763242623446,0.0492573,140.01,139.99,3.33463688]
[1763242623949,0.0492573,140.01,140.0,5.11824849]
[1763242624844,0.0492573,140.01,140.0,3.28]
[1763242625048,0.0492573,140.01,139.99,5.23288537]
[1763242626653,0.0492573,140.01,139.99,3.39463688]
[1763242628456,0.0492573,140.01,140.0,5.17824849]
[1763242629844,0.0492573,140.01,140.0,3.34]
[1763242634854,0.0492573,140.01,139.99,3.36463688]
[1763242645363,5.09102268,140.01,139.99,3.36463688]
[1763242645666,0.0492573,140.01,139.99,3.36463688]
[1763242646069,5.09102268,140.01,139.99,3.36463688]
[1763242646269,0.0492573,140.01,139.99,3.36463688]
[1763242646672,5.09102268,140.01,139.99,3.36463688]
[1763242646865,0.0492573,140.01,139.99,3.36463688]
[1763242647272,5.04176538,140.0,139.99,3.36463688]
[1763242654172,0.0492573,140.01,139.99,3.36463688]
[1763242654369,5.05611945,140.0,139.99,3.36463688]
[1763242654576,0.0492573,140.01,140.0,3.27]
[1763242655074,5.10537675,140.01,140.0,3.27]
[1763242655271,0.0492573,140.01,140.0,3.27]
[1763242655877,5.10537675,140.01,140.0,3.27]
[1763242656077,0.0492573,140.01,140.0,3.27]
[1763242656679,5.10537675,140.01,140.0,3.27]
[1763242656980,0.0492573,140.01,140.0,3.27]
[1763242657281,5.10537675,140.01,140.0,3.27]
[1763242660474,5.10537675,140.01,139.99,3.32463688]
[1763242660781,5.05611945,140.0,139.99,3.32463688]
[1763242660972,5.05611945,140.0,139.99,0.05463688]
[1763242669288,5.05611945,140.0,139.96,1.83824849]
[1763242669493,5.05611945,140.0,139.94,5.10824849]
[1763242669494,5.05611945,139.99,139.94,5.10824849]
[1763242669789,8.41671275,140.0,139.94,5.10824849]
[1763242669790,5.05611945,139.98,139.95,3.27]
[1763242670091,5.05611945,139.97,139.95,3.27]
[1763242670293,5.05611945,139.96,139.95,3.27]
[1763242670493,0.05301155,139.97,139.95,3.32344404]
[1763242670694,5.05611945,139.96,139.95,3.32344404]
[1763242671194,0.05301155,139.97,139.95,3.32344404]
[1763242672993,5.12405475,139.97,139.95,3.32344404]
[1763242673297,0.05301155,139.97,139.95,3.32344404]
[1763242673794,5.12405475,139.97,139.95,3.32344404]
[1763242673995,0.05301155,139.97,139.95,3.32344404]
[1763242674388,5.12405475,139.97,139.96,1.83824849]
[1763242674597,0.05301155,139.97,139.96,5.10824849]
[1763242674996,0.05301155,139.97,139.96,3.27]
[1763242676389,5.0710432,140.0,139.96,3.27]
[1763242676596,5.0710432,139.99,139.96,3.27]
[1763242676798,11.70858909,140.02,139.96,6.14315091]
[1763242677005,5.0710432,140.01,139.97,3.27]
[1763242677207,5.0710432,140.0,139.97,3.27]
[1763242677506,5.0710432,139.99,139.97,3.31714984]
[1763242679608,5.0710432,139.98,139.97,3.31714984]
[1763242679808,5.0710432,139.99,139.97,3.31714984]
[1763242680000,5.0710432,139.98,139.97,3.31714984]
[1763242680206,5.0710432,139.99,139.97,3.31714984]
[1763242680407,5.0710432,139.98,139.97,3.31714984]
[1763242680607,5.0710432,139.99,139.97,3.31714984]
[1763242680808,5.0710432,139.98,139.97,3.31714984]
[1763242681008,5.0710432,139.99,139.97,3.31714984]
[1763242681310,5.0710432,139.98,139.97,3.31714984]
[1763242681508,5.0710432,139.99,139.97,3.31714984]
[1763242681712,5.0710432,139.98,139.97,3.31714984]
[1763242682009,5.0710432,139.98,139.97,0.04714984]
[1763242685808,5.0710432,139.98,139.97,3.25714984]
[1763242686010,0.04778178,140.0,139.97,3.25714984]
[1763242686011,5.0710432,139.99,139.97,3.25714984]
[1763242686312,5.0710432,139.98,139.97,3.25714984]
[1763242686512,0.04778178,140.0,139.97,3.25714984]
[1763242686513,5.0710432,139.99,139.97,3.25714984]
[1763242686813,5.0710432,139.98,139.97,3.25714984]
[1763242687013,0.04778178,140.0,139.97,3.25714984]
[1763242687214,5.0710432,139.99,139.97,3.25714984]
[1763242687612,0.04778178,140.0,139.97,3.25714984]
[1763242687813,5.0710432,139.99,139.97,3.25714984]
[1763242690017,0.04778178,140.0,139.97,3.25714984]
[1763242690416,5.0710432,139.99,139.97,3.25714984]
[1763242698120,5.0710432,139.98,139.97,3.25714984]
[1763242698419,5.0710432,139.99,139.97,3.25714984]
[1763242698622,5.0710432,139.98,139.97,3.25714984]
[1763242698919,5.0710432,139.99,139.97,3.25714984]
[1763242699120,5.0710432,139.98,139.97,3.25714984]
[1763242699319,0.04778178,140.0,139.97,3.25714984]
[1763242699320,5.0710432,139.99,139.97,3.25714984]
[1763242699522,5.0710432,139.98,139.97,3.25714984]
[1763242699724,5.0710432,139.99,139.97,3.25714984]
[1763242699912,5.0710432,139.98,139.97,3.25714984]
[1763242700108,5.0710432,139.99,139.97,3.25714984]
[1763242700308,5.0710432,139.98,139.97,3.25714984]
[1763242700513,5.0710432,139.99,139.97,3.25714984]
[1763242700718,5.0710432,139.98,139.97,3.25714984]
[1763242700918,5.0710432,139.99,139.97,3.25714984]
[1763242701313,0.04778178,140.0,139.97,3.25714984]
[1763242701513,5.07711569,139.99,139.97,3.25714984]
[1763242701716,0.04778178,140.0,139.97,3.25714984]
[1763242702016,5.07742674,139.99,139.97,3.25714984]
[1763242702213,5.0770006,139.98,139.97,3.25714984]
[1763242702412,5.0770006,139.99,139.97,3.25714984]
[1763242702621,5.0770006,139.98,139.97,3.25714984]
[1763242702817,5.0770006,139.99,139.97,3.25714984]
[1763242703023,5.0770006,139.98,139.97,0.04714984]
[1763242708725,6.4970006,139.98,139.9,8.89630187]
[1763242708925,6.65184412,139.94,139.89,2.87315091]
[1763242709128,5.0770006,139.93,139.9,3.31]
[1763242709430,5.0770006,139.92,139.9,3.31]
[1763242709624,5.0770006,139.94,139.9,3.31]
[1763242709825,10.45826609,139.93,139.91,3.36446528]
[1763242710026,10.40676429,139.92,139.91,3.36446528]
[1763242710329,5.32976369,139.92,139.91,3.36446528]
[1763242711231,0.0515018,139.93,139.91,3.36446528]
[1763242711432,5.38126549,139.93,139.91,3.36446528]
[1763242711734,0.0515018,139.93,139.91,3.36446528]
[1763242713226,5.38126549,139.93,139.91,3.36446528]
[1763242713426,0.0515018,139.93,139.91,3.36446528]
[1763242713625,5.38126549,139.93,139.91,3.36446528]
[1763242713826,0.0515018,139.93,139.91,3.36446528]
[1763242718926,0.0515018,139.93,139.91,0.05446528]
[1763242719827,5.38126549,139.93,139.91,0.05446528]
[1763242720033,5.38126549,139.93,139.89,3.31]
[1763242721137,0.0515018,139.93,139.9,0.05046563]
[1763242723431,0.0515018,139.93,139.9,3.36046563]
[1763242743143,1.89216769,139.93,139.9,3.36046563]
[1763242744154,0.0515018,139.93,139.9,3.36046563]
[1763242744659,1.89216769,139.93,139.9,3.36046563]
[1763242745059,7.22193138,139.93,139.9,3.36046563]
[1763242745258,7.22193138,139.93,139.8,13.18769997]
[1763242745259,1.84066589,139.91,139.87,3.31]
[1763242745453,7.17042958,139.91,139.87,3.31]
[1763242745852,1.84066589,139.91,139.87,3.31]
[1763242746249,7.17042958,139.91,139.87,3.31]
[1763242746450,0.04629303,139.9,139.87,3.31]
[1763242747159,5.37605672,139.9,139.87,3.31]
[1763242748655,1.84066589,139.89,139.83,3.31]
[1763242748854,0.04703158,139.87,139.83,3.31]
[1763242765168,1.88769747,139.87,139.83,3.31]
[1763242765467,0.04703158,139.87,139.83,5.15066589]
[1763242765673,0.04703158,139.87,139.84,3.36]
[1763242766573,1.88769747,139.87,139.84,3.36]
[1763242769974,1.84066589,139.85,139.82,3.36]
[1763242770169,1.89189176,139.85,139.82,3.36]
[1763242770573,1.84066589,139.83,139.78,3.36]
[1763242770766,0.04868854,139.82,139.78,3.36]
[1763242771673,1.84066589,139.81,139.78,3.36]
[1763242772575,0.04868854,139.82,139.78,3.36]
[1763242773374,0.04868854,139.82,139.79,3.36]
[1763242776676,0.04868854,139.82,139.81,3.38]
[1763242777275,0.04868854,139.82,139.78,3.38]
[1763242777970,0.04868854,139.82,139.79,3.38]
[1763242780783,0.04868854,139.82,139.81,3.38]
[1763242781778,1.84066589,139.88,139.81,3.38]
[1763242782077,1.84066589,139.88,139.77,23.35982028]
[1763242782078,1.84066589,139.88,139.83,3.38]
[1763242782882,0.04542333,139.87,139.85,3.38]
[1763242787793,0.04542333,139.87,139.84,3.43242771]
[1763242788193,0.04542333,139.87,139.85,3.38]
[1763242791388,0.04542333,139.87,139.81,3.38]
[1763242791389,1.84066589,139.86,139.81,3.38]
[1763242791698,1.84066589,139.84,139.79,3.38]
[1763242792396,0.0517103,139.83,139.79,3.38]
[1763242793691,1.84066589,139.82,139.78,3.38]
[1763242794099,0.0517103,139.83,139.78,3.38]
[1763242794900,1.84066589,139.82,139.78,3.38]
[1763242795293,1.84066589,139.82,139.77,5.73982028]
[1763242795493,1.84066589,139.8,139.77,5.73982028]
[1763242795693,1.89365533,139.8,139.77,5.73982028]
[1763242796302,1.89365533,139.8,139.78,3.38]
[1763242797000,0.05298944,139.8,139.78,3.38]
[1763242797200,0.05298944,139.8,139.77,2.35982028]
[1763242797389,2.93424373,139.8,139.72,3.38]
[1763242797591,0.05373814,139.77,139.72,3.38]
[1763242798798,2.88125429,139.76,139.72,3.38]
[1763242799196,0.05373814,139.77,139.65,6.26125429]
[1763242799399,0.05182997,139.72,139.66,3.38]
[1763242800491,2.93308426,139.72,139.66,3.38]
[1763242800902,0.05182997,139.72,139.66,6.26125429]
[1763242801305,0.05182997,139.72,139.67,3.38]
[1763242807310,2.88125429,139.7,139.6,3.19]
[1763242807512,0.05054399,139.66,139.62,3.19]
[1763242807811,2.88125429,139.74,139.62,3.19]
[1763242808104,0.04899527,139.69,139.62,3.19]
[1763242809209,2.88125429,139.68,139.62,3.19]
[1763242809409,2.88125429,139.67,139.62,3.19]
[1763242809605,2.88125429,139.67,139.48,15.57502619]
[1763242809606,2.88125429,139.63,139.55,3.19]
[1763242809802,56.64565987,139.66,139.55,3.19]
[1763242809803,2.88125429,139.58,139.55,3.19]
[1763242810003,2.88125429,139.58,139.49,3.19]
[1763242810203,11.68155482,139.64,139.48,2.38732622]
[1763242810204,0.04987164,139.55,139.48,2.38732622]
[1763242810403,0.04987164,139.55,139.49,3.19]
[1763242811614,2.88125429,139.54,139.49,3.19]
[1763242811806,2.88125429,139.54,139.48,2.38732622]
[1763242812001,2.88125429,139.52,139.48,2.38732622]
[1763242812206,0.04987538,139.51,139.48,2.38732622]
[1763242812610,0.04987538,139.51,139.48,5.69732622]
[1763242812812,0.04987538,139.51,139.49,3.31]
[1763242813107,0.04987538,139.51,139.48,5.69732622]
[1763242813313,0.04987538,139.51,139.49,3.31]
[1763242815105,2.88125429,139.57,139.49,3.35573179]
[1763242815316,2.88125429,139.6,139.51,3.31]
[1763242816120,0.05280353,139.57,139.55,3.31]
[1763242817626,0.00280353,139.57,139.55,3.31]
[1763242817828,7.15772182,139.63,139.55,3.31]
[1763242818525,7.15772182,139.63,139.52,3.31]
[1763242818731,7.15772182,139.57,139.56,0.04580089]
[1763242818924,7.15772182,139.57,139.55,0.0497563]
[1763242819225,7.21135829,139.57,139.55,0.0455462]
[1763242820128,0.05363647,139.57,139.55,0.0455462]
[1763242824032,7.21135829,139.57,139.55,0.0455462]
[1763242824937,1.44,139.56,139.48,2.38732622]
[1763242825239,7.15772182,139.54,139.48,2.38732622]
[1763242825935,0.05012014,139.52,139.5,0.05030855]
[1763242826121,7.15772182,139.51,139.5,0.05030855]
[1763242826329,7.15772182,139.51,139.48,2.38732622]
[1763242828326,8.59772182,139.51,139.4,3.31]
[1763242828532,7.20784196,139.52,139.4,3.31]
[1763242828533,7.20395773,139.47,139.4,3.31]
[1763242829134,0.04623591,139.47,139.4,3.31]
[1763242829528,7.15772182,139.46,139.4,3.31]
[1763242829734,7.15772182,139.46,139.37,3.31]
[1763242829933,0.04579459,139.43,139.37,3.31]
[1763242831027,7.20351641,139.43,139.37,3.31]
[1763242832137,7.20351641,139.43,139.29,1.24858727]
[1763242832340,0.05291524,139.37,139.3,3.31]
[1763242832541,7.15772182,139.47,139.32,3.31]
[1763242832737,7.15772182,139.5,139.35,3.31]
[1763242833243,7.15772182,139.47,139.35,3.31]
[1763242833442,7.15772182,139.45,139.35,3.31]
[1763242833737,0.04853217,139.42,139.4,3.35751863]
[1763242833937,0.04853217,139.42,139.4,3.35921669]
[1763242833938,0.04659041,139.42,139.4,3.35921669]
[1763242835132,28.24,139.51,139.41,3.32]
[1763242836244,0.04684368,139.47,139.46,3.32]
[1763242836544,0.04907925,139.48,139.46,3.32]
[1763242836946,0.04907925,139.48,139.45,0.04734655]
[1763242837247,0.04907925,139.48,139.45,3.36734655]
[1763242845043,16.9028272,139.56,139.46,3.32]
[1763242845454,6.65184412,139.55,139.46,3.32]
[1763242846050,0.04975222,139.52,139.49,3.37310672]
[1763242846250,0.04885362,139.52,139.49,3.37301361]
[1763242849154,5.29515855,139.52,139.49,3.37301361]
[1763242849352,5.24630493,139.51,139.49,3.37301361]
[1763242850460,5.24630493,139.5,139.49,3.37301361]
[1763242850663,5.24630493,139.51,139.49,3.37301361]
[1763242850960,5.24630493,139.5,139.49,3.37301361]
[1763242851162,5.24630493,139.51,139.49,3.37301361]
[1763242851361,5.24630493,139.5,139.49,3.37301361]
[1763242852160,5.24630493,139.51,139.49,3.37301361]
[1763242852359,5.24630493,139.5,139.49,0.05301361]
[1763242852556,11.89814905,139.5,139.49,0.05301361]
[1763242852861,16.9028272,139.5,139.49,0.05301361]
[1763242853259,20.36571976,139.5,139.49,0.05301361]
[1763242853558,11.69098308,139.5,139.49,0.05301361]
[1763242854266,18.9909525,139.5,139.49,0.05301361]
[1763242854456,10.25098308,139.5,139.49,0.05301361]
[1763242854653,19.00298092,139.5,139.49,0.05301361]
[1763242856059,11.69098308,139.5,139.49,0.05301361]
[1763242856662,11.69098308,139.5,139.41,3.32]
[1763242856858,6.56273136,139.47,139.41,3.32]
[1763242857073,10.25098308,139.46,139.41,3.32]
[1763242857371,5.24630493,139.45,139.41,3.32]
[1763242857665,5.29864564,139.44,139.41,3.32]
[1763242857858,0.05234071,139.44,139.43,3.32]
[1763242858055,5.24630493,139.44,139.43,3.32]
[1763242858259,0.05106703,139.45,139.43,3.32]
[1763242858766,5.29737196,139.45,139.43,3.32]
[1763242858966,0.05106703,139.45,139.43,3.32]
[1763242860365,0.05106703,139.45,139.42,0.05328367]
[1763242860568,9.74997705,139.44,139.42,0.05328367]
[1763242860763,10.25098308,139.43,139.42,0.05328367]
[1763242861161,10.25098308,139.43,139.37,3.32]
[1763242861362,5.24630493,139.42,139.37,3.32]
[1763242861971,4.50367212,139.43,139.29,1.24905782]
[1763242861972,5.24630493,139.41,139.34,3.32]
[1763242862166,0.05256381,139.39,139.36,3.36895468]
[1763242863577,0.05256381,139.39,139.36,0.04895468]
[1763242863774,5.29886874,139.39,139.36,3.36895468]
[1763242863967,0.05256381,139.39,139.36,3.36895468]
[1763242864865,0.05256381,139.39,139.36,0.04895468]
[1763242865171,0.05256381,139.39,139.36,3.43895468]
[1763242865368,0.05256381,139.39,139.36,0.04895468]
[1763242865566,0.05256381,139.39,139.36,3.43895468]
[1763242865968,5.29886874,139.39,139.36,3.43895468]
[1763242866171,4.50367212,139.38,139.36,0.04895468]
[1763242867170,9.74997705,139.38,139.29,3.39]
[1763242867372,5.24630493,139.38,139.29,3.39]
[1763242867568,21.31738656,139.4,139.29,3.39]
[1763242867768,10.25098308,139.39,139.29,3.39]
[1763242867971,4.50367212,139.4,139.29,3.39]
[1763242868180,4.50367212,139.4,139.31,3.39]
[1763242868372,0.04588804,139.37,139.31,3.39]
[1763242868682,5.24630493,139.42,139.31,3.39]
[1763242868973,14.82937669,139.43,139.31,3.39]